bitfinex/quotes_ETHUSD_20220310
["timestamp","ask_amount","ask_price","bid_price","bid_amount"]
[1646933704574,1.2345,2603.9,2603.2,0.00355638]
[1646933704575,13.80829697,2603.6,2603.2,0.00355638]
[1646933704772,12.1764,2603.4,2603.2,0.00355638]
[1646933704973,1.21271332,2603.8,2603.2,0.00355638]
[1646933704974,13.81397387,2603.3,2603.2,0.00355638]
[1646933705570,1.5848299,2603.3,2602.7,1.07475416]
[1646933705772,2.5459199,2603.2,2603.1,0.00338241]
[1646933706618,2.9323199,2603.2,2603.1,0.00338241]
[1646933706817,2.9323199,2603.2,2602.6,0.9611]
[1646933707016,1.9712299,2603.1,2603.0,0.00338245]
[1646933707221,1.5848299,2603.1,2603.0,0.00338245]
[1646933707719,1.5848299,2603.3,2603.0,0.00338245]
[1646933707917,1.5848299,2603.2,2602.7,0.96104]
[1646933708117,1.5848299,2603.1,2602.7,0.96104]
[1646933708319,14.09863,2603.4,2602.9,0.00339145]
[1646933708518,1.58515834,2603.3,2602.9,0.00339145]
[1646933708718,0.3864,2603.2,2602.9,0.00339145]
[1646933708923,1.58515834,2603.1,2602.7,0.46443145]
[1646933709522,0.96102,2603.3,2602.7,0.46443145]
[1646933709727,13.37511326,2603.2,2602.7,0.46443145]
[1646933709979,1.58511326,2603.1,2602.7,0.46443145]
[1646933710166,1.58511326,2603.1,2602.5,2.95336106]
[1646933711968,1.58511326,2603.1,2602.7,0.00149139]
[1646933712169,1.58511326,2603.1,2602.7,0.96261139]
[1646933712770,1.58511326,2603.1,2602.7,0.96112]
[1646933712969,1.58511326,2603.1,2602.8,0.0039631]
[1646933713920,13.1375,2603.2,2602.7,0.96112]
[1646933714320,12.1764,2603.2,2602.8,0.00396315]
[1646933714930,1.58515569,2603.1,2602.8,0.00396315]
[1646933715126,0.45015,2603.3,2602.7,0.96112]
[1646933715323,1.5851514,2603.2,2602.7,0.96112]
[1646933715524,1.5851514,2603.2,2602.8,0.0039632]
[1646933716324,1.5851514,2603.2,2602.7,0.96112]
[1646933716525,1.63492679,2603.2,2602.7,0.96112]
[1646933716724,0.04977539,2603.2,2602.8,0.00388889]
[1646933717573,0.04977539,2603.2,2602.7,0.96112]
[1646933717769,0.04977539,2603.2,2602.8,0.00388889]
[1646933718770,0.04977539,2603.2,2602.7,0.96112]
[1646933718974,0.04977539,2603.2,2602.8,0.00388889]
[1646933719873,0.04966852,2603.4,2602.9,0.96095]
[1646933720079,1.1986,2603.6,2602.9,0.96095]
[1646933720275,1.58495641,2603.5,2603.0,0.07930082]
[1646933721421,1.58495641,2603.5,2603.2,2.80237015]
[1646933721815,2.2706,2603.8,2603.2,2.80237015]
[1646933722016,1.58486977,2603.7,2603.2,2.80237015]
[1646933722217,1.58486977,2603.6,2603.2,2.80237015]
[1646933722418,1.58486977,2603.5,2603.2,2.80237015]
[1646933722621,0.58334773,2603.9,2603.2,2.80237015]
[1646933722917,1.5848283,2603.8,2603.2,2.80237015]
[1646933723519,1.5848283,2603.8,2603.3,0.96075]
[1646933723720,1.5848283,2603.8,2603.3,1.9215]
[1646933724726,13.7612283,2603.8,2603.3,0.96075]
[1646933724979,0.05307526,2603.5,2602.9,1.92192]
[1646933725171,1.5848283,2603.4,2602.9,1.92192]
[1646933726369,1.5848283,2603.4,2602.9,2.86193727]
[1646933726969,1.5848283,2603.4,2603.0,0.07290898]
[1646933727169,1.1863,2603.8,2603.1,0.96075]
[1646933727370,1.58493033,2603.7,2603.1,1.92148]
[1646933727772,1.58493033,2603.7,2603.1,0.96073]
[1646933728827,1.63791336,2603.7,2603.1,0.96073]
[1646933729025,1.58493033,2603.6,2603.1,0.96073]
[1646933729827,3.55380103,2603.5,2603.0,1.92145]
[1646933730027,1.58493033,2603.4,2603.0,1.92145]
[1646933730628,1.58493033,2603.4,2602.8,0.00370049]
[1646933730629,12.1764,2603.1,2602.8,0.00370049]
[1646933730829,11.79,2602.9,2602.3,1.92234]
[1646933731027,11.79,2602.9,2602.8,0.0037006]
[1646933731831,11.83973028,2603.0,2602.8,0.0037006]
[1646933732028,15.34262875,2602.9,2602.2,1.89618762]
[1646933732228,15.34262875,2602.9,2602.7,0.00370034]
[1646933732476,13.76521875,2602.9,2602.7,0.00370034]
[1646933732666,3.5,2602.8,2602.7,0.00370034]
[1646933732869,13.76521875,2602.9,2602.7,0.00370034]
[1646933733075,13.76417348,2602.9,2602.7,0.00370034]
[1646933733272,13.76417348,2602.9,2602.2,0.9613]
[1646933733473,1.97417348,2602.9,2602.6,0.00370038]
[1646933734574,1.97417348,2602.9,2602.6,0.00740074]
[1646933734774,1.97417348,2602.9,2602.6,0.00370036]
[1646933735173,0.96128,2602.8,2602.6,0.00370036]
[1646933735577,0.96128,2602.8,2602.2,0.9613]
[1646933735774,4.46128,2602.8,2602.6,0.00346332]
[1646933735974,0.96128,2602.8,2602.6,0.00346332]
[1646933736221,1.1939,2603.2,2602.6,0.00346332]
[1646933736423,1.58521789,2603.1,2602.6,0.00346332]
[1646933736821,1.58521789,2603.1,2602.3,0.08984125]
[1646933737021,1.58521789,2603.1,2602.8,0.00346323]
[1646933737222,1.58521789,2603.1,2602.9,0.96102]
[1646933737621,18.76075037,2603.4,2602.9,0.96102]
[1646933737622,4.8546,2603.4,2602.9,0.96102]
[1646933737823,2.78057,2603.7,2603.0,0.07980291]
[1646933738023,1.58502272,2603.6,2603.0,0.07980291]
[1646933738226,1.58502272,2603.5,2602.7,0.08200902]
[1646933738422,1.63629557,2603.4,2603.1,0.96085]
[1646933738623,1.58502272,2603.3,2603.1,0.96085]
[1646933739024,1.58502272,2603.3,2603.0,1.9217]
[1646933739428,1.58502272,2603.3,2602.8,0.00370859]
[1646933740083,2.54611272,2603.3,2602.8,0.00370859]
[1646933740385,1.58502272,2603.2,2602.7,1.92193]
[1646933740585,1.58502272,2603.2,2602.4,0.0769166]
[1646933740788,1.58502272,2603.2,2602.8,0.00370844]
[1646933740986,14.95238285,2603.4,2602.8,0.00370844]
[1646933740987,1.58502272,2603.1,2602.8,0.00370844]
[1646933741184,14.95238285,2603.4,2602.8,0.00370844]
[1646933741384,1.5851042,2603.3,2602.8,0.00370844]
[1646933741584,0.9611,2603.2,2602.5,1.92211]
[1646933741786,5.0851042,2603.1,2602.8,0.00369916]
[1646933741985,1.5851042,2603.0,2602.8,0.00369916]
[1646933742186,16.8751042,2602.9,2602.8,0.00369916]
[1646933742385,17.2615042,2602.9,2602.8,0.00369916]
[1646933742785,0.00811129,2602.7,2602.0,1.92237]
[1646933742987,0.96131,2602.5,2602.0,1.92237]
[1646933743185,4.46131,2602.5,2602.0,1.92237]
[1646933743390,4.46131,2602.5,2601.9,0.0880786]
[1646933744227,1.5854639,2602.4,2602.1,0.00363066]
[1646933744430,2.5468439,2602.4,2602.1,0.00363066]
[1646933744629,0.96138,2602.4,2602.1,0.00363066]
[1646933744826,1.58548143,2602.3,2602.1,0.00363066]
[1646933745026,0.96138,2602.4,2602.1,0.00363066]
[1646933745227,0.96138,2602.4,2601.9,0.0880786]
[1646933745427,0.96138,2602.4,2602.1,0.00363704]
[1646933746429,0.96138,2602.4,2601.9,0.0880786]
[1646933746626,0.96138,2602.4,2601.8,0.04002395]
[1646933746627,0.96138,2602.4,2602.1,0.00370582]
[1646933746829,11.84123252,2602.2,2602.1,0.00370582]
[1646933747027,13.42682415,2602.2,2602.1,0.00370582]
[1646933747227,12.75154,2602.1,2601.4,0.92592439]
[1646933747484,12.75154,2602.1,2601.3,0.08791538]
[1646933747870,1.58573185,2602.0,2601.3,0.08791538]
[1646933748070,1.58573185,2602.0,2601.2,2.30706]
[1646933748071,0.43530438,2601.9,2601.2,2.30706]
[1646933748270,0.45122,2602.2,2601.2,1.92286]
[1646933748469,1.62825257,2602.1,2601.2,2.01221506]
[1646933748672,0.04251022,2602.1,2601.2,2.01221506]
[1646933748873,0.04251022,2602.1,2601.4,0.0814311]
[1646933749074,0.96154,2601.9,2601.6,0.00122859]
[1646933749875,0.96154,2601.9,2601.4,0.0814311]
[1646933750275,0.04251022,2602.1,2601.6,0.00370287]
[1646933751327,0.04251022,2602.1,2601.4,0.0814311]
[1646933751524,0.04251022,2602.1,2601.7,0.00370282]
[1646933752325,0.04251022,2602.1,2601.4,0.0814311]
[1646933752825,0.04251022,2602.1,2601.8,0.00370082]
[1646933753625,0.04251022,2602.1,2601.5,0.96144]
[1646933753831,0.04251022,2602.1,2601.8,0.0037008]
[1646933754729,0.04251022,2602.1,2601.5,0.96144]
[1646933755170,0.04251022,2602.1,2601.8,0.0037008]
[1646933756072,0.04251022,2602.1,2601.5,0.96144]
[1646933756273,0.04251022,2602.1,2601.8,0.00370108]
[1646933757074,0.04251022,2602.1,2601.5,0.96144]
[1646933757475,0.04251022,2602.1,2601.8,0.00370108]
[1646933758276,12.21891022,2602.1,2601.8,0.00370108]
[1646933758475,0.04277168,2602.0,2601.8,0.00370108]
[1646933758719,1.24935,2602.3,2601.8,0.00370108]
[1646933758720,0.04625842,2602.2,2601.8,0.00740216]
[1646933758923,0.04625842,2602.2,2601.8,0.00370108]
[1646933759327,12.1764,2602.1,2601.8,0.00370108]
[1646933759525,0.0542325,2602.0,2601.5,0.96144]
[1646933759927,0.0542325,2602.0,2601.9,0.00370101]
[1646933760127,0.04230976,2602.2,2601.9,0.00370101]
[1646933760827,0.04230976,2602.2,2601.5,0.96144]
[1646933761027,0.04230976,2602.2,2601.9,0.00370099]
[1646933762029,0.04230976,2602.2,2601.4,0.96137]
[1646933762329,1.1808,2602.3,2601.9,0.00357713]
[1646933762575,4.6825,2602.4,2601.9,0.00357713]
[1646933762974,4.6825,2602.4,2601.9,0.09154052]
[1646933763175,4.6825,2602.4,2602.0,0.07213629]
[1646933763375,19.8002456,2602.5,2602.0,0.07213629]
[1646933763576,19.85326758,2602.5,2602.0,0.00357716]
[1646933764380,19.85326758,2602.5,2601.6,0.08495921]
[1646933764581,19.85326758,2602.5,2602.0,0.00357725]
[1646933765182,12.43296758,2602.5,2602.0,0.00357725]
[1646933765580,12.43296758,2602.5,2601.6,2.00762921]
[1646933765784,1.58559949,2602.4,2602.0,0.00370111]
[1646933765980,13.37559949,2602.4,2602.0,0.00370111]
[1646933766219,11.79,2602.4,2602.0,0.00370111]
[1646933766425,12.1764,2602.4,2602.0,0.00370111]
[1646933766624,11.79,2602.2,2602.0,0.00370111]
[1646933766823,11.79,2602.2,2601.4,0.08141418]
[1646933767219,11.79,2602.2,2602.0,0.00370524]
[1646933768024,11.79,2602.2,2601.4,0.08141418]
[1646933768220,11.79,2602.2,2602.0,0.00370514]
[1646933768422,1.63647364,2602.1,2602.0,0.00370514]
[1646933768622,13.42647364,2602.1,2602.0,0.00370514]
[1646933768827,0.00452113,2601.9,2601.2,0.07345076]
[1646933770671,0.00452113,2601.9,2601.4,0.00122631]
[1646933770672,0.05728516,2601.9,2601.4,0.00122631]
[1646933771475,0.05728516,2601.9,2601.2,0.02345076]
[1646933771675,0.05728516,2601.9,2601.2,0.96155]
[1646933771876,0.05728516,2601.9,2601.5,0.00122626]
[1646933772083,0.00452113,2601.9,2601.5,0.00122626]
[1646933772875,0.00452113,2601.9,2601.1,2.91735029]
[1646933773077,0.00452113,2601.9,2601.6,0.00370332]
[1646933774024,0.00452113,2601.9,2601.5,0.9615]
[1646933774424,0.00452113,2601.9,2601.6,0.00378167]
[1646933775227,0.00452113,2601.9,2601.5,0.9615]
[1646933775425,0.00452113,2601.9,2601.6,0.00378167]
[1646933775625,0.00452113,2601.9,2601.6,0.96509167]
[1646933776427,0.00452113,2601.9,2601.6,1.92263]
[1646933776627,0.00452113,2601.9,2601.6,1.92641167]
[1646933777674,0.00452113,2601.9,2601.6,1.92263]
[1646933777875,0.00452113,2601.9,2601.6,1.9263166]
[1646933778878,0.00452113,2601.9,2601.6,1.92263]
[1646933779077,0.00452113,2601.9,2601.6,1.9263166]
[1646933780080,0.00452113,2601.9,2601.6,0.96131]
[1646933780281,0.00452113,2601.9,2601.6,0.9649966]
[1646933781328,0.00452113,2601.9,2601.2,0.192]
[1646933781527,0.00452113,2601.9,2601.6,0.00370051]
[1646933782431,0.00452113,2601.9,2601.1,0.99425029]
[1646933782628,0.00452113,2601.9,2601.6,0.00122064]
[1646933783030,0.05749233,2601.9,2601.6,0.00122064]
[1646933783630,0.05749233,2601.9,2601.1,0.99425029]
[1646933783834,0.05749233,2601.9,2601.6,0.00122064]
[1646933784035,1.58586127,2601.8,2601.6,0.00122064]
[1646933784834,1.58586127,2601.8,2601.1,1.95580029]
[1646933785077,1.58586127,2601.8,2601.6,0.00387479]
[1646933785974,1.58586127,2601.8,2601.1,1.95578029]
[1646933786173,1.58586127,2601.8,2601.1,0.96153]
[1646933786473,1.58586127,2601.8,2601.6,0.00387479]
[1646933788373,1.58586127,2601.8,2601.0,1.00055634]
[1646933788576,1.58586127,2601.8,2601.6,0.00119266]
[1646933789628,0.05267621,2601.7,2601.0,0.93716628]
[1646933789827,1.58586127,2601.6,2600.9,4.78339628]
[1646933790833,1.58586127,2601.6,2601.1,0.96155]
[1646933791031,1.18922113,2601.9,2601.3,0.07570816]
[1646933791234,1.58585865,2601.8,2601.3,0.07570816]
[1646933792228,1.58585865,2601.8,2601.4,0.00369683]
[1646933793081,1.58585865,2601.8,2601.6,1.0173835]
[1646933793286,1.18922113,2601.9,2601.6,1.0173835]
[1646933793485,0.00452113,2601.9,2601.6,1.0173835]
[1646933793686,0.00295018,2601.9,2601.5,0.00369681]
[1646933794086,0.00295018,2601.9,2601.5,0.96510681]
[1646933794486,0.00295018,2601.9,2601.5,0.96141]
[1646933794687,0.00295018,2601.9,2601.6,0.00369676]
[1646933795593,0.00295018,2601.9,2601.6,1.01544855]
[1646933795987,0.00295018,2601.9,2601.6,1.0191377]
[1646933796824,0.00295018,2601.9,2601.6,1.01544855]
[1646933797024,0.00295018,2601.9,2601.7,3.5]
[1646933797225,0.00295018,2601.9,2601.8,0.06218847]
[1646933797423,0.00295018,2601.9,2601.8,3.56218847]
[1646933797627,2.29874918,2602.6,2601.8,0.61518847]
[1646933797827,3.53661129,2602.7,2601.9,0.961]
[1646933797828,1.58559988,2602.5,2601.9,0.961]
[1646933798132,1.58559988,2602.4,2602.0,1.03112612]
[1646933798327,1.58559988,2602.3,2602.1,1.03103733]
[1646933798529,0.00811129,2602.7,2602.2,0.0671513]
[1646933798728,1.58553022,2602.6,2602.2,3.8671513]
[1646933798927,0.00811129,2602.7,2602.3,0.553]
[1646933799131,0.00811129,2602.7,2602.4,1.02908783]
[1646933799329,0.00811129,2602.7,2602.5,0.96093]
[1646933799528,0.00811129,2602.7,2602.6,0.07491597]
[1646933799736,0.77595285,2603.5,2602.6,5.65016373]
[1646933799737,0.01475612,2602.9,2602.6,5.65016373]
[1646933799991,0.01475612,2602.9,2602.7,0.06993486]
[1646933800180,0.01475612,2602.9,2602.8,0.553]
[1646933800381,0.01475612,2602.9,2602.8,0.853]
[1646933800580,0.0008,2603.8,2602.9,0.45343421]
[1646933800785,0.00368859,2603.5,2603.4,0.94010366]
[1646933801684,1.58503022,2603.8,2603.4,0.94010366]
[1646933801883,1.58503022,2603.8,2603.4,1.90070366]
[1646933802085,0.00368909,2603.6,2603.5,0.9605999]
[1646933802289,1.58867414,2603.6,2603.5,0.9605999]
[1646933802483,0.00368909,2603.6,2603.5,0.9605999]
[1646933802886,1.58497678,2603.8,2603.5,0.9605999]
[1646933803291,0.00368885,2603.7,2603.5,0.9605999]
[1646933803724,0.00368885,2603.7,2603.4,2.8818]
[1646933803928,0.00368885,2603.7,2603.3,1.92122]
[1646933804127,1.58497678,2603.8,2603.3,1.92122]
[1646933804527,0.00368882,2603.7,2603.3,1.92122]
[1646933805228,1.58497678,2603.8,2603.3,1.92122]
[1646933805428,1.58497678,2603.8,2603.3,2.8606017]
[1646933805629,0.00368887,2603.6,2603.3,2.8606017]
[1646933806030,0.00368887,2603.6,2603.3,1.92122]
[1646933806430,1.58497678,2603.8,2603.3,1.92122]
[1646933806833,0.0036889,2603.6,2603.3,1.92122]
[1646933807033,0.0036889,2603.6,2603.3,2.95269679]
[1646933807676,1.58497678,2603.8,2603.3,2.95269679]
[1646933807875,0.0036889,2603.6,2603.3,2.95269679]
[1646933808276,0.0036889,2603.6,2603.0,3.91431369]
[1646933808484,0.0036889,2603.6,2602.8,1.92167]
[1646933808485,0.3900889,2603.6,2602.8,1.92167]
[1646933808677,0.0626387,2603.5,2602.8,1.92167]
[1646933808877,13.43761548,2603.5,2602.8,1.92167]
[1646933809076,0.3864,2603.4,2602.8,1.92167]
[1646933809277,0.05565499,2603.3,2602.8,1.92167]
[1646933809478,0.05565499,2603.3,2602.9,1.00958076]
[1646933810077,0.12117601,2603.7,2602.9,1.00958076]
[1646933810278,0.3864,2603.5,2602.9,1.00958076]
[1646933810478,0.3864,2603.5,2602.8,1.92167]
[1646933810479,1.63841125,2603.4,2602.8,1.92167]
[1646933810679,0.0531635,2603.4,2602.8,1.92167]
[1646933810878,0.00368868,2603.5,2602.8,1.92167]
[1646933811322,0.0508654,2603.4,2602.8,1.92167]
[1646933811528,1.58530106,2603.3,2602.7,0.96097]
[1646933811727,1.58530106,2603.3,2602.6,1.92343903]
[1646933811728,0.05744533,2603.2,2602.6,0.00158903]
[1646933811927,0.05744533,2603.2,2602.1,0.06731959]
[1646933812129,0.0630555,2603.0,2602.1,0.06731959]
[1646933812527,0.0630555,2603.0,2602.0,2.8833775]
[1646933813127,0.0630555,2603.0,2602.1,1.92217]
[1646933813327,0.0630555,2603.0,2602.1,2.86878304]
[1646933813528,0.0630555,2603.0,2602.1,1.92217]
[1646933814530,0.05860107,2602.7,2601.9,1.92600048]
[1646933814730,12.1764,2602.8,2601.9,0.00369048]
[1646933814731,0.05916716,2602.5,2601.9,0.00369048]
[1646933814991,0.05916716,2602.5,2601.7,1.10163996]
[1646933815379,0.05916716,2602.5,2601.9,0.00369024]
[1646933815984,0.05916716,2602.5,2601.9,0.96502024]
[1646933816184,0.05916716,2602.5,2601.9,0.96133]
[1646933816387,0.05916716,2602.5,2601.9,0.96502015]
[1646933817385,0.05916716,2602.5,2601.9,0.96133]
[1646933817585,0.05916716,2602.5,2601.9,0.96502018]
[1646933818489,0.05916716,2602.5,2601.9,0.96133]
[1646933818725,1.5857532,2602.4,2601.9,0.96133]
[1646933818932,0.0620009,2602.3,2601.9,0.96502018]
[1646933819229,0.3864,2602.6,2601.9,0.96502018]
[1646933819529,1.5857895,2602.5,2601.9,0.96502018]
[1646933819732,0.05415172,2602.4,2601.9,0.96133]
[1646933819934,0.3864,2602.4,2601.9,0.96133]
[1646933820131,0.05333108,2602.3,2601.9,0.96502022]
[1646933820732,0.12130326,2602.6,2601.9,0.96502022]
[1646933820932,1.5857803,2602.5,2601.9,0.96133]
[1646933821131,0.05113925,2602.4,2601.9,0.96133]
[1646933821334,0.05113925,2602.4,2601.9,0.96502008]
[1646933821936,0.05113925,2602.4,2601.9,0.00369008]
[1646933821937,0.3864,2602.2,2601.9,0.00369008]
[1646933822136,0.05244683,2602.1,2601.5,0.96308903]
[1646933822339,0.05244683,2602.1,2601.1,1.98727965]
[1646933822340,0.05244683,2602.1,2600.9,2.30719]
[1646933822579,0.05516599,2601.8,2600.9,1.92319]
[1646933822776,0.05516599,2601.8,2600.9,3.12394842]
[1646933823377,0.05516599,2601.8,2600.9,5.04699842]
[1646933823780,0.05516599,2601.8,2601.2,0.00369029]
[1646933823980,0.05363387,2601.8,2601.2,0.00369029]
[1646933824186,0.13113741,2602.0,2601.2,0.00369029]
[1646933824579,0.13113741,2602.0,2601.1,2.8845133]
[1646933824980,0.13113741,2602.0,2601.5,0.00369599]
[1646933825486,0.13113741,2602.0,2600.3,0.93716628]
[1646933825487,78.0,2601.9,2600.3,0.93716628]
[1646933825686,78.0,2601.9,2600.1,17.80778127]
[1646933825687,0.00845001,2601.4,2600.1,10.58164336]
[1646933825891,0.00845001,2601.4,2599.7,0.5807158]
[1646933825892,0.05919511,2600.9,2599.7,0.5807158]
[1646933826095,6.919,2600.1,2599.7,0.36058804]
[1646933826347,0.01204461,2600.2,2599.5,5.95344823]
[1646933826348,4.2453,2600.0,2599.5,5.95344823]
[1646933826552,6.9811002,2599.8,2599.5,4.2047384]
[1646933826753,0.01263885,2599.6,2598.2,0.93697084]
[1646933826948,0.01263885,2599.6,2598.0,0.00654174]
[1646933826949,6.919,2599.3,2598.1,0.93697084]
[1646933827146,6.919,2599.0,2598.0,0.00654174]
[1646933827350,0.6147866,2598.9,2597.9,1.0]
[1646933827546,0.6147866,2598.9,2598.0,0.00654174]
[1646933827547,18.5,2598.7,2598.0,0.00654174]
[1646933827751,0.0696458,2598.4,2597.9,1.0]
[1646933828051,6.9415143,2598.6,2597.9,1.0]
[1646933828052,0.553,2598.3,2597.9,1.0]
[1646933828245,3.56417636,2598.2,2597.9,1.0]
[1646933828454,0.553,2598.2,2597.9,1.0]
[1646933828647,0.553,2598.2,2598.0,0.00391567]
[1646933828648,0.06243511,2598.1,2598.0,0.00391567]
[1646933828846,0.06243511,2598.1,2598.0,1.567e-05]
[1646933828847,2.54120651,2598.1,2598.0,1.567e-05]
[1646933829047,6.9416514,2598.1,2598.0,1.567e-05]
[1646933829247,54.5,2598.0,2597.6,6.501e-05]
[1646933829452,4.2453,2597.9,2597.2,0.2007]
[1646933829649,6.17178,2597.9,2597.2,0.2007]
[1646933829849,6.17178,2597.9,2596.1,0.00110169]
[1646933830083,1.926959,2597.4,2596.1,0.00110169]
[1646933830283,6.17255,2597.3,2596.1,0.00110169]
[1646933830486,2.8906105,2597.2,2596.1,0.00110169]
[1646933830686,5.20903,2597.1,2596.0,0.2304]
[1646933830889,0.96354,2597.0,2596.0,0.2304]
[1646933831088,0.96358,2596.8,2596.0,0.2304]
[1646933831292,2.4801791,2596.7,2596.0,0.2304]
[1646933831490,0.1925,2596.6,2596.0,0.2304]
[1646933831690,2.4801791,2596.7,2596.0,0.2304]
[1646933832091,0.96358,2596.6,2596.5,0.90613518]
[1646933832389,3.08311,2597.2,2596.5,0.90613518]
[1646933832390,0.1925,2597.2,2596.5,0.90613518]
[1646933832589,2.89062,2597.3,2596.5,0.90613518]
[1646933832789,2.89062,2597.3,2596.4,0.25]
[1646933833188,2.89062,2597.3,2595.9,1.00110169]
[1646933833189,1.92669,2597.1,2596.3,0.00110169]
[1646933833390,1.92669,2597.1,2596.0,0.00110169]
[1646933833391,0.96335,2596.9,2596.0,0.00110169]
[1646933833744,0.96335,2596.9,2595.1,0.01997064]
[1646933833745,3.63819997,2596.8,2596.4,2.753e-05]
[1646933833934,37.46356,2596.7,2595.5,0.00110169]
[1646933834135,0.3,2596.0,2595.3,0.00110169]
[1646933834335,0.9639838,2595.8,2595.1,0.02107233]
[1646933834535,0.96396,2595.6,2595.4,0.04035807]
[1646933834738,0.96396,2595.6,2595.4,5.807e-05]
[1646933834739,3.5,2595.5,2595.4,5.807e-05]
[1646933834937,3.56808,2595.5,2595.4,5.807e-05]
[1646933835337,26.0,2595.4,2595.1,7.064e-05]
[1646933835536,3.56808,2595.3,2595.1,7.064e-05]
[1646933835736,11.79,2595.2,2595.1,7.064e-05]
[1646933835935,0.06808,2595.2,2595.1,7.064e-05]
[1646933836337,3.56808,2595.2,2595.1,7.064e-05]
[1646933836535,4.53229,2595.2,2595.1,7.064e-05]
[1646933836736,5.53229,2595.2,2595.1,7.064e-05]
[1646933836935,4.53229,2595.2,2595.1,7.064e-05]
[1646933837341,1.58529,2595.2,2595.1,7.064e-05]
[1646933837580,5.78821,2595.4,2595.1,7.064e-05]
[1646933837581,1.51651,2595.4,2595.1,7.064e-05]
[1646933837785,1.0,2595.2,2595.1,7.064e-05]
[1646933838488,0.9639414,2595.5,2595.1,7.064e-05]
[1646933838684,0.2089,2595.7,2595.1,7.064e-05]
[1646933839487,0.2089,2595.7,2595.3,0.00390353]
[1646933839691,0.28164292,2595.7,2595.3,0.00390353]
[1646933839894,0.9639424,2595.6,2595.3,0.00390353]
[1646933840190,3.55927119,2595.5,2595.3,3.53e-06]
[1646933840496,3.55927119,2595.5,2595.1,7.064e-05]
[1646933840497,0.05846913,2595.4,2595.1,7.064e-05]
[1646933840689,0.05846913,2595.4,2595.3,3.252e-05]
[1646933840889,0.8053995,2595.4,2595.3,3.252e-05]
[1646933841093,4.11146913,2595.4,2595.3,3.252e-05]
[1646933841326,1.9978995,2595.4,2595.3,3.252e-05]
[1646933841525,0.06776227,2595.3,2595.1,0.03987064]
[1646933842123,1.06776227,2595.3,2595.1,0.03906834]
[1646933842324,3.56602377,2595.2,2595.1,0.03906834]
[1646933842528,0.06602377,2595.2,2595.1,0.03906834]
[1646933842931,3.56602377,2595.2,2595.1,0.03906834]
[1646933844229,0.06602377,2595.2,2595.1,0.03906834]
[1646933844636,0.06203426,2595.6,2595.1,0.03906834]
[1646933845083,0.2089,2595.7,2595.1,0.03906834]
[1646933845480,0.2089,2595.7,2595.2,0.00390362]
[1646933846283,0.2089,2595.7,2595.1,0.03906834]
[1646933846485,0.2089,2595.7,2595.1,1.26751936]
[1646933846785,0.2089,2595.7,2595.2,0.00390371]
[1646933847484,0.06803694,2595.8,2595.2,0.00390371]
[1646933847688,0.06803694,2595.8,2595.1,1.26751936]
[1646933847891,0.06803694,2595.8,2595.4,0.25]
[1646933848090,0.7642,2596.0,2595.5,0.553]
[1646933848289,0.0698188,2596.5,2595.5,0.553]
[1646933848487,0.0698188,2596.5,2595.6,0.3864]
[1646933848741,0.0698188,2596.5,2595.5,0.553]
[1646933848935,0.0698188,2596.5,2595.4,0.0011833]
[1646933848936,12.79,2596.1,2595.4,0.0011833]
[1646933849134,0.06616051,2595.9,2595.2,0.00142401]
[1646933850038,1.15768037,2596.5,2595.2,0.96277495]
[1646933850039,1.35018037,2596.5,2595.2,0.96277495]
[1646933850241,0.00390683,2596.2,2595.2,0.96668339]
[1646933850539,0.07664501,2596.2,2595.2,1.45918339]
[1646933850839,0.07664501,2596.2,2595.3,0.3864]
[1646933851237,0.07273818,2596.2,2595.3,0.3864]
[1646933851438,0.07273818,2596.2,2595.2,0.00509436]
[1646933851439,0.07664764,2596.2,2595.2,0.00509436]
[1646933851841,11.86664764,2596.2,2595.2,0.00509436]
[1646933852038,0.05791741,2596.1,2595.2,0.00509436]
[1646933852238,0.05791741,2596.1,2595.2,0.00391106]
[1646933852481,0.05791741,2596.1,2595.1,0.04067294]
[1646933852684,0.05791741,2596.1,2595.2,0.00391106]
[1646933853286,0.00390946,2596.2,2595.4,0.3864]
[1646933853484,0.00390946,2596.2,2595.4,0.9394]
[1646933853683,0.06106792,2596.6,2595.9,0.89236666]
[1646933853887,0.06106792,2596.6,2596.3,1.15272999]
[1646933854085,0.0008,2596.8,2596.3,1.15272999]
[1646933854484,1.0693448,2597.5,2596.3,1.53912999]
[1646933854687,0.0008,2597.2,2596.7,0.95575206]
[1646933854890,0.73875926,2596.5,2596.4,0.96311]
[1646933855090,0.00391067,2596.7,2596.4,2.59667894]
[1646933855293,0.00391067,2596.7,2596.5,0.4925]
[1646933855492,0.00391067,2596.7,2596.6,0.553]
[1646933855694,0.00391067,2596.7,2596.6,0.7455]
[1646933856093,0.0008,2597.7,2596.6,0.7455]
[1646933856094,0.0008,2597.7,2596.8,1.34942]
[1646933856337,0.0008,2597.7,2596.9,0.3]
[1646933856539,0.0008,2597.7,2596.7,0.0011833]
[1646933856739,0.0008,2597.7,2596.5,1.9273133]
[1646933856939,0.06918324,2597.8,2596.6,0.9364]
[1646933857138,0.06918324,2597.8,2596.7,1.90248]
[1646933857340,0.19393037,2598.2,2597.3,1.06544457]
[1646933857644,0.25757364,2598.1,2597.3,1.06544457]
[1646933857840,0.06517364,2598.1,2597.3,1.06544457]
[1646933858443,0.06517364,2598.1,2597.4,0.96284]
[1646933858642,0.00237639,2597.8,2597.3,1.92548]
[1646933859441,0.06517364,2598.1,2597.4,0.553]
[1646933859643,0.06517364,2598.1,2597.4,1.51574]
[1646933859849,0.00237639,2597.7,2597.5,4.46276]
[1646933860077,0.00237639,2597.7,2597.6,0.553]
[1646933860281,0.00237639,2597.7,2597.6,0.853]
[1646933860687,0.92660526,2598.6,2597.7,0.46476644]
[1646933860878,0.92660526,2598.6,2597.9,1.12339239]
[1646933861278,0.06283307,2598.7,2597.9,1.67639239]
[1646933862085,0.06283307,2598.7,2597.9,3.04847239]
[1646933862285,0.00391353,2598.4,2598.3,0.99508184]
[1646933863088,0.00391353,2598.4,2598.3,1.52591137]
[1646933863293,0.8888,2599.1,2598.4,2.0015647]
[1646933863488,0.8888,2599.1,2598.5,0.463]
[1646933863932,0.8888,2599.1,2598.7,0.99168871]
[1646933864131,0.8888,2599.1,2598.7,1.06319694]
[1646933864332,0.8888,2599.1,2598.8,0.96229]
[1646933864537,0.8888,2599.1,2598.9,0.53615253]
[1646933864732,0.00249059,2599.0,2598.9,0.83615253]
[1646933865136,0.00249059,2599.0,2598.9,0.763]
[1646933865536,0.8888,2599.1,2598.9,1.7251]
[1646933865734,0.8888,2599.1,2598.9,8.11102]
[1646933865936,0.00249059,2599.1,2598.9,8.11102]
[1646933866134,0.00249059,2599.1,2599.0,3.5]
[1646933866332,0.00249059,2599.1,2599.0,4.963]